fUSD/lending_fUSD_20240614
["ID","MTS","AMOUNT","RATE_DAILY","PERIOD"]
[329427517,1718333450203,-1980.01,0.00024109,2]
[329427518,1718333450213,-500.0,0.00024109,2]
[329427519,1718333450224,-500.0,0.00024109,2]
[329427520,1718333450252,-1415.87,0.00024109,2]
[329427521,1718333450265,-500.0,0.00024109,2]
[329427522,1718333450284,-500.0,0.00024109,2]
[329427523,1718333450295,-500.05,0.00024109,2]
[329427524,1718333450321,-3512.25,0.00024109,2]
[329427525,1718333450341,-1565.34,0.00024109,2]
[329427526,1718333450352,-1405.43,0.00024109,2]
[329427527,1718333450384,-500.0,0.00024109,2]
[329427528,1718333450395,-500.0,0.00024109,2]
[329427529,1718333450406,-1387.24,0.00024109,2]
[329427530,1718333450417,-2141.83,0.00024109,2]
[329427531,1718333450428,-947.77,0.00024109,2]
[329427532,1718333450440,-1529.75,0.00024109,2]
[329427533,1718333450452,-517.38,0.00024109,2]
[329427534,1718333450468,-500.0,0.00024109,2]
[329427535,1718333450478,-500.0,0.00024109,2]
[329427536,1718333450491,-1378.84,0.00024109,2]
[329427537,1718333450501,-500.0,0.00024109,2]
[329427538,1718333450513,-921.55,0.00024109,2]
[329427539,1718333450536,-1454.48,0.00024109,2]
[329427540,1718333450546,-718.39,0.00024109,2]
[329427541,1718333450557,-500.0,0.00024109,2]
[329427542,1718333450567,-963.87,0.00024109,2]
[329427543,1718333450577,-838.6,0.00024109,2]
[329427544,1718333450590,-500.0,0.00024109,2]
[329427545,1718333450603,-525.77,0.00024109,2]
[329427546,1718333450615,-500.0,0.00024109,2]
[329427547,1718333450628,-500.0,0.00024109,2]
[329427548,1718333450640,-500.0,0.00024109,2]
[329427549,1718333450650,-1170.92,0.00024109,2]
[329427550,1718333450660,-1467.76,0.00024109,2]
[329427551,1718333450671,-500.0,0.00024109,2]
[329427552,1718333450682,-500.0,0.00024109,2]
[329427553,1718333450692,-500.0,0.00024109,2]
[329427554,1718333450705,-961.26,0.00024109,2]
[329427555,1718333450720,-614.22,0.00024109,2]
[329427556,1718333450732,-500.0,0.00024109,2]
[329427557,1718333450760,-2834.33,0.00024109,2]
[329427558,1718333450774,-1379.25,0.00024109,2]
[329427559,1718333450787,-500.0,0.00024109,2]
[329427560,1718333450802,-0.33403035,0.00024109,2]
[329427561,1718333450915,-1417.60596965,0.00024109,2]
[329427562,1718333450926,-500.0,0.00024109,2]
[329427563,1718333450939,-4641.74,0.00024109,2]
[329427564,1718333450973,-1710.24,0.00024109,2]
[329427565,1718333450985,-1630.85,0.00024109,2]
[329427566,1718333450997,-1670.69,0.00024109,2]
[329427567,1718333451020,-500.0,0.00024109,2]
[329427568,1718333451032,-500.0,0.00024109,2]
[329427569,1718333451045,-1252.79,0.00024109,2]
[329427570,1718333451056,-167.6166467,0.00024109,2]
[329427571,1718333451071,-303.51924479,0.00024109,2]
[329427572,1718333451093,-28.86410851,0.00024109,2]
[329427573,1718333451110,-500.0,0.00024109,2]
[329427574,1718333451122,-225.57667729,0.00024109,2]
[329427575,1718333451171,-758.31332271,0.00024109,2]
[329427576,1718333451181,-1588.68,0.00024109,2]
[329427577,1718333451208,-500.0,0.00024109,2]
[329427578,1718333451221,-982.87,0.00024109,2]
[329427579,1718333451241,-500.0,0.00024109,2]
[329427580,1718333451272,-500.0,0.00024109,2]
[329427581,1718333451289,-2354.21,0.00024109,2]
[329427582,1718333451309,-4137.04,0.00024109,2]
[329427583,1718333451329,-1943.52,0.00024109,2]
[329427584,1718333451352,-1469.18,0.00024109,2]
[329427585,1718333451365,-500.0,0.00024109,2]
[329427586,1718333451399,-500.0,0.00024109,2]
[329427587,1718333451425,-2348.18,0.00024109,2]
[329427588,1718333451438,-500.0,0.00024109,2]
[329427589,1718333451452,-500.0,0.00024109,2]
[329427590,1718333451466,-864.98,0.00024109,2]
[329427591,1718333451482,-825.26,0.00024109,2]
[329427592,1718333451495,-500.0,0.00024109,2]
[329427593,1718333451513,-500.0,0.00024109,2]
[329427594,1718333451525,-1783.46,0.00024109,2]
[329427595,1718333451535,-500.0,0.00024109,2]
[329427596,1718333451546,-524.7,0.00024109,2]
[329427597,1718333451557,-1847.17,0.00024109,2]
[329427598,1718333451570,-361.85006305,0.00024109,2]
[329427599,1718333451581,-500.0,0.00024109,2]
[329427600,1718333451592,-857.95,0.00024109,2]
[329427601,1718333451604,-595.0367261,0.00024109,2]
[329427602,1718333451621,-918.27,0.00024109,2]
[329427603,1718333451631,-500.0,0.00024109,2]
[329427604,1718333451642,-500.0,0.00024109,2]
[329427605,1718333451684,-500.0,0.00024109,2]
[329427606,1718333451695,-682.74,0.00024109,2]
[329427607,1718333451719,-500.0,0.00024109,2]
[329427608,1718333451742,-500.0,0.00024109,2]
[329427609,1718333451753,-500.0,0.00024109,2]
[329427610,1718333451764,-165.85080731,0.00024109,2]
[329427611,1718333451774,-200.41145975,0.00024109,2]
[329427612,1718333451967,-299.58854025,0.00024109,2]
[329427613,1718333451980,-69.00291806,0.00024109,2]
[329427614,1718333452005,-804.04708194,0.00024109,2]
[329427615,1718333452029,-503.69,0.00024109,2]
[329427616,1718333452053,-500.0,0.00024109,2]
[329427617,1718333452083,-124.51291806,0.00024109,2]
[329427618,1718333452104,-719.11591248,0.00024109,2]
[329427619,1718333452119,-125.37116946,0.00024109,2]
[329427620,1718333452135,-374.31816464,0.00024109,2]
[329427621,1718333452170,-476.12372952,0.00024109,2]
[329427622,1718333452183,-23.87627048,0.00024109,2]
[329427623,1718333452200,-500.0,0.00024109,2]
[329427624,1718333452211,-352.12372953,0.00024109,2]
[329427625,1718333452231,-147.87627047,0.00024109,2]
[329427626,1718333452245,-500.0,0.00024109,2]
[329427627,1718333452266,-500.0,0.00024109,2]
[329427628,1718333452304,-500.0,0.00024109,2]
[329427629,1718333452330,-500.0,0.00024109,2]
[329427630,1718333452342,-553.0,0.00024109,2]
[329427631,1718333452359,-91.50444323,0.00024109,2]
[329427632,1718333452374,-316.156902,0.00024109,2]
[329427633,1718333452420,-275.24865477,0.00024109,2]
[329427634,1718333452433,-500.0,0.00024109,2]
[329427635,1718333452444,-13784.4723896,0.0002423,2]
[329427636,1718333452454,-420.05,0.00024247,2]
[329427637,1718333452480,-600.08,0.00024247,2]
[329427638,1718333452499,-150.0,0.00024247,2]
[329427639,1718333452512,-526.76,0.00024247,2]
[329427640,1718333452572,-526.76,0.00024247,2]
[329427641,1718333452599,-150.0,0.00024247,2]
[329427642,1718333452621,-328.62,0.00024247,2]
[329427643,1718333452641,-150.0,0.00024247,2]
[329427644,1718333452656,-183.96,0.00024247,2]
[329427645,1718333452668,-150.0,0.00024247,2]
[329427646,1718333452685,-219.65,0.00024274,3]
[329427647,1718333452710,-179.922919,0.0002428,2]
[329427648,1718333452725,-5243.0814553,0.0002428,2]
[329427649,1718333452753,-426.2934,0.00024283,2]
[329427650,1718333452773,-404.36573902,0.00024365,2]
[329427651,1718333452784,-240.74297631,0.00024365,2]
[329427652,1718333452795,-12248.3121712,0.00024366,2]
[329427653,1718333452805,-152.82,0.0002437,2]
[329427654,1718333452818,-152.82,0.0002437,2]
[329427655,1718333452828,-152.82,0.0002437,2]
[329427656,1718333452841,-14283.60527396,0.0002438,2]
[329427657,1718333452864,-825.14433453,0.0002438,2]
[329427658,1718333452900,-681.43362743,0.0002438,2]
[329427659,1718333452917,-692.08241096,0.0002438,2]
[329427660,1718333453074,-2962.82012566,0.0002438,2]
[329427661,1718333453088,-3625.5733598,0.0002438,2]
[329427662,1718333453128,-1650.24238056,0.0002438,2]
[329427663,1718333453165,-1686.35,0.0002438,2]
[329427664,1718333453194,-457.37992571,0.0002438,2]
[329427665,1718333453211,-713.10704317,0.0002438,2]
[329427666,1718333453240,-6657.95335533,0.0002438,2]
[329427667,1718333453298,-2104.73194767,0.0002438,2]
[329427668,1718333453314,-382.51597426,0.0002438,2]
[329427669,1718333453412,-620.53980725,0.0002438,2]
[329427674,1718334444170,-1512.09705714,0.00017259,2]
[329427675,1718334444198,-204.29,0.00017337,2]
[329427676,1718334444254,-172.12012373,0.0001798,2]
[329427677,1718334444281,-155.16104218,0.0001808,2]
[329427678,1718334444311,-150.0,0.00019451,2]
[329427679,1718334444366,-300.0,0.00019451,2]
[329427680,1718334444462,-7262.68864603,0.00019625,2]
[329427681,1718334454126,-156.14321544,0.00019625,2]
[329427695,1718334633879,-574.32971375,0.00019625,2]
[329427696,1718334634744,-409.12146104,0.00019625,2]
[329427697,1718334634876,-297.86256585,0.00019625,2]
[329427698,1718334635128,-1463.96439789,0.00019625,2]
[329427699,1718334635141,-1282.99657438,0.00020137,2]
[329427700,1718334635153,-154.86936162,0.00020237,2]
[329427701,1718334635166,-486.46,0.00020337,2]
[329427702,1718334635181,-250.0,0.00021785,2]
[329427703,1718334635193,-250.0,0.00021918,2]
[329427704,1718334635210,-187.8,0.00022108,2]
[329427705,1718334635226,-486.46,0.00022601,2]
[329427706,1718334635260,-161.28,0.0002271,2]
[329427707,1718334635280,-195.44,0.00023073,2]
[329427708,1718334635304,-2509.0,0.000231,3]
[329427709,1718334635321,-164.22,0.00023123,2]
[329427710,1718334635343,-250.0,0.00023123,2]
[329427711,1718334635372,-499.99,0.00023228,2]
[329427712,1718334635383,-360.01,0.00023693,2]
[329427713,1718334635406,-300.0,0.000238,8]
[329427714,1718334635424,-600.0,0.000239,8]
[329427715,1718334635447,-154.86936161,0.00023997,2]
[329427716,1718334635460,-308.7402,0.00024009,2]
[329427717,1718334635481,-3862.26913097,0.00024009,2]
[329427718,1718334635495,-1639.55596903,0.00024009,2]
[329427719,1718334635509,-2500.0,0.00024009,2]
[329427720,1718334635528,-10503.37273456,0.00024097,2]
[329427721,1718334635540,-7949.72409494,0.00024107,2]
[329427722,1718334635561,-2822.15784885,0.00024107,2]
[329427723,1718334635576,-665.84215115,0.00024107,2]
[329427724,1718334635623,-3880.42848261,0.00024107,2]
[329427725,1718334635710,-17757.91806301,0.00024107,2]
[329427726,1718334635725,-155.44334253,0.00024107,3]
[329427727,1718334635753,-864.62751791,0.00024107,2]
[329427728,1718334635789,-2822.15784885,0.00024107,2]
[329427729,1718334635806,-156.65641551,0.00024107,2]
[329427730,1718334635825,-207.1229333,0.00024107,2]
[329427731,1718334635849,-430.93007356,0.00024107,2]
[329427732,1718334635893,-157.70220935,0.00024107,2]
[329427733,1718334635938,-188.24706994,0.00024107,2]
[329427734,1718334635960,-5711.7132444,0.00024108,2]
[329427735,1718334635979,-2605.00747912,0.00024108,2]
[329427736,1718334635995,-500.0,0.00024109,2]
[329427737,1718334636044,-500.0,0.00024109,2]
[329427738,1718334636056,-500.0,0.00024109,2]
[329427739,1718334636070,-377.87982961,0.00024109,2]
[329427740,1718334636084,-500.0,0.00024109,2]
[329427741,1718334636095,-500.0,0.00024109,2]
[329427742,1718334636121,-500.0,0.00024109,2]
[329427743,1718334636145,-500.0,0.00024109,2]
[329427744,1718334636174,-500.0,0.00024109,2]
[329427745,1718334636204,-500.0,0.00024109,2]
[329427746,1718334636236,-500.0,0.00024109,2]
[329427747,1718334636250,-313.35978132,0.00024109,2]
[329427748,1718334636269,-500.0,0.00024109,2]
[329427749,1718334636298,-500.0,0.00024109,2]
[329427750,1718334636310,-532.28,0.00024109,2]
[329427751,1718334636334,-500.0,0.00024109,2]
[329427752,1718334636356,-500.0,0.00024109,2]
[329427753,1718334636391,-500.0,0.00024109,2]
[329427754,1718334636411,-500.0,0.00024109,2]
[329427755,1718334636444,-500.0,0.00024109,2]
[329427756,1718334636464,-500.0,0.00024109,2]
[329427757,1718334636493,-500.0,0.00024109,2]
[329427758,1718334636509,-500.0,0.00024109,2]
[329427759,1718334636529,-500.0,0.00024109,2]
[329427760,1718334636551,-500.0,0.00024109,2]
[329427761,1718334636565,-500.0,0.00024109,2]
[329427762,1718334636585,-500.0,0.00024109,2]
[329427763,1718334636613,-437.57423297,0.00024109,2]
[329427764,1718334636712,-62.42576703,0.00024109,2]
[329427765,1718334636727,-451.86658968,0.00024109,2]
[329427846,1718334639845,-48.13341032,0.00024109,2]
[329427847,1718334639864,-500.0,0.00024109,2]
[329427848,1718334639876,-500.0,0.00024109,2]
[329427849,1718334639887,-491.56343848,0.00024109,2]
[329427851,1718334640730,-8.43656152,0.00024109,2]
[329427853,1718334640753,-324.13474852,0.00024109,2]
[329427854,1718334640788,-175.86525148,0.00024109,2]
[329427855,1718334640801,-245.53397552,0.00024109,2]
[329427857,1718334640821,-254.46602448,0.00024109,2]
[329427860,1718334640850,-500.0,0.00024109,2]
[329427861,1718334640872,-247.35499349,0.00024109,2]
[329427928,1718334644778,-252.64500651,0.00024109,2]
[329427929,1718334644802,-500.0,0.00024109,2]
[329427930,1718334644816,-500.0,0.00024109,2]
[329427931,1718334644834,-500.0,0.00024109,2]
[329427932,1718334644849,-500.0,0.00024109,2]
[329427933,1718334644865,-500.0,0.00024109,2]
[329427934,1718334644892,-500.0,0.00024109,2]
[329427935,1718334644908,-500.0,0.00024109,2]
[329427936,1718334644937,-500.0,0.00024109,2]
[329427937,1718334644952,-500.0,0.00024109,2]
[329427938,1718334644963,-500.0,0.00024109,2]
[329427939,1718334644984,-500.0,0.00024109,2]
[329427940,1718334644996,-500.0,0.00024109,2]
[329427941,1718334645015,-526.46,0.00024109,2]
[329427942,1718334645030,-500.0,0.00024109,2]
[329427943,1718334645052,-500.0,0.00024109,2]
[329427944,1718334645067,-500.0,0.00024109,2]
[329427945,1718334645081,-500.0,0.00024109,2]
[329427946,1718334645094,-500.0,0.00024109,2]
[329427947,1718334645106,-150.0,0.00024109,2]
[329427948,1718334645118,-610.37405875,0.00024109,2]
[329427949,1718334645134,-500.0,0.00024109,2]
[329427950,1718334645148,-500.0,0.00024109,2]
[329427951,1718334645164,-500.0,0.00024109,2]
[329427952,1718334645185,-500.0,0.00024109,2]
[329427953,1718334645197,-500.0,0.00024109,2]
[329427954,1718334645209,-500.0,0.00024109,2]
[329427955,1718334645220,-500.0,0.00024109,2]
[329427956,1718334645244,-500.0,0.00024109,2]
[329427957,1718334645255,-500.0,0.00024109,2]
[329427958,1718334645268,-500.0,0.00024109,2]
[329427959,1718334645297,-500.0,0.00024109,2]
[329427960,1718334645308,-500.0,0.00024109,2]
[329427961,1718334645320,-500.0,0.00024109,2]
[329427962,1718334645349,-500.0,0.00024109,2]
[329427963,1718334645361,-500.0,0.00024109,2]
[329427964,1718334645374,-500.0,0.00024109,2]
[329427965,1718334645385,-500.0,0.00024109,2]
[329427966,1718334645396,-231.76,0.00024109,2]
[329427967,1718334645416,-500.0,0.00024109,2]
[329427968,1718334645444,-500.0,0.00024109,2]
[329427969,1718334645464,-500.0,0.00024109,2]
[329427970,1718334645474,-500.0,0.00024109,2]
[329427971,1718334645503,-500.0,0.00024109,2]
[329427972,1718334645530,-500.0,0.00024109,2]
[329427973,1718334645541,-500.0,0.00024109,2]
[329427974,1718334645571,-500.0,0.00024109,2]
[329427975,1718334645592,-500.0,0.00024109,2]
[329427976,1718334645606,-500.0,0.00024109,2]
[329427977,1718334645622,-500.0,0.00024109,2]
[329427978,1718334645635,-500.0,0.00024109,2]
[329427979,1718334645676,-400.36,0.00024109,2]
[329427980,1718334645688,-500.0,0.00024109,2]
[329427981,1718334645700,-761.79,0.00024109,2]
[329427982,1718334645714,-500.0,0.00024109,2]
[329427983,1718334645736,-500.0,0.00024109,2]
[329427984,1718334645768,-500.0,0.00024109,2]
[329427985,1718334645803,-500.0,0.00024109,2]
[329427986,1718334645822,-1871.29,0.00024109,2]
[329427987,1718334645861,-500.0,0.00024109,2]
[329427988,1718334645924,-309.22020945,0.00024109,2]
[329427989,1718334645935,-567.0,0.00024109,2]
[329427990,1718334645967,-500.0,0.00024109,2]
[329427991,1718334645978,-500.0,0.00024109,2]
[329427992,1718334645991,-500.0,0.00024109,2]
[329427993,1718334646012,-500.0,0.00024109,2]
[329427994,1718334646023,-408.84835732,0.00024109,2]
[329427995,1718334646041,-500.0,0.00024109,2]
[329427996,1718334646064,-500.0,0.00024109,2]
[329427997,1718334646089,-500.0,0.00024109,2]
[329427998,1718334646153,-500.0,0.00024109,2]
[329428000,1718334646165,-500.0,0.00024109,2]
[329428001,1718334646184,-561.2,0.00024109,2]
[329428002,1718334646197,-500.0,0.00024109,2]
[329428003,1718334646208,-620.78,0.00024109,2]
[329428004,1718334646254,-875.03,0.00024109,2]
[329428005,1718334646307,-500.0,0.00024109,2]
[329428006,1718334646347,-258.29,0.00024109,2]
[329428007,1718334646372,-500.0,0.00024109,2]
[329428008,1718334646445,-500.0,0.00024109,2]
[329428009,1718334646521,-500.0,0.00024109,2]
[329428010,1718334646571,-1336.92,0.00024109,2]
[329428011,1718334646633,-628.64,0.00024109,2]
[329428012,1718334646646,-500.0,0.00024109,2]
[329428013,1718334646674,-500.0,0.00024109,2]
[329428014,1718334646704,-4173.13,0.00024109,2]
[329428015,1718334646718,-3425.33,0.00024109,2]
[329428016,1718334646731,-500.0,0.00024109,2]
[329428017,1718334646763,-500.0,0.00024109,2]
[329428019,1718334646779,-500.0,0.00024109,2]
[329428021,1718334646793,-572.71,0.00024109,2]
[329428023,1718334646806,-500.0,0.00024109,2]
[329428026,1718334646825,-513.86,0.00024109,2]
[329428028,1718334646846,-500.0,0.00024109,2]
[329428031,1718334646861,-1744.82,0.00024109,2]
[329428033,1718334646881,-500.0,0.00024109,2]
[329428035,1718334646899,-500.0,0.00024109,2]
[329428038,1718334646916,-500.0,0.00024109,2]
[329428041,1718334646936,-9699.57,0.00024109,2]
[329428045,1718334646972,-500.0,0.00024109,2]
[329428049,1718334646997,-657.99,0.00024109,2]
[329428051,1718334647009,-500.0,0.00024109,2]
[329428054,1718334647024,-8677.51,0.00024109,2]
[329428056,1718334647048,-703.46,0.00024109,2]
[329428058,1718334647085,-500.0,0.00024109,2]
[329428061,1718334647128,-793.99,0.00024109,2]
[329428062,1718334647140,-500.0,0.00024109,2]
[329428064,1718334647158,-500.0,0.00024109,2]
[329428066,1718334647170,-500.0,0.00024109,2]
[329428068,1718334647181,-724.9,0.00024109,2]
[329428070,1718334647205,-752.33,0.00024109,2]
[329428073,1718334647223,-500.0,0.00024109,2]
[329428075,1718334647235,-500.0,0.00024109,2]
[329428076,1718334647248,-2014.78,0.00024109,2]
[329428080,1718334647272,-500.0,0.00024109,2]
[329428082,1718334647292,-500.0,0.00024109,2]
[329428085,1718334647328,-3196.41,0.00024109,2]
[329428087,1718334647340,-2105.23,0.00024109,2]
[329428089,1718334647364,-500.0,0.00024109,2]
[329428091,1718334647380,-500.0,0.00024109,2]
[329428093,1718334647399,-500.0,0.00024109,2]
[329428096,1718334647420,-1047.78,0.00024109,2]
[329428100,1718334647444,-500.0,0.00024109,2]
[329428105,1718334647476,-500.0,0.00024109,2]
[329428108,1718334647489,-579.41,0.00024109,2]
[329428110,1718334647506,-500.0,0.00024109,2]
[329428114,1718334647526,-500.0,0.00024109,2]
[329428118,1718334647538,-629.02,0.00024109,2]
[329428120,1718334647561,-500.0,0.00024109,2]
[329428123,1718334647582,-1491.3,0.00024109,2]
[329428126,1718334647599,-500.0,0.00024109,2]
[329428129,1718334647618,-500.0,0.00024109,2]
[329428131,1718334647641,-500.0,0.00024109,2]
[329428132,1718334647673,-1346.87,0.00024109,2]
[329428134,1718334647689,-1299.82417245,0.00024109,2]
[329428155,1718334648233,-200.29582755,0.00024109,2]
[329428156,1718334648245,-1897.51,0.00024109,2]
[329428157,1718334648259,-500.0,0.00024109,2]
[329428158,1718334648271,-7378.31,0.00024109,2]
[329428159,1718334648286,-500.0,0.00024109,2]
[329428160,1718334648315,-500.0,0.00024109,2]
[329428161,1718334648343,-883.15,0.00024109,2]
[329428162,1718334648365,-500.0,0.00024109,2]
[329428163,1718334648383,-1466.01,0.00024109,2]
[329428164,1718334648415,-538.23,0.00024109,2]
[329428165,1718334648433,-1393.88,0.00024109,2]
[329428166,1718334648449,-908.27,0.00024109,2]
[329428167,1718334648486,-503.87,0.00024109,2]
[329428168,1718334648504,-500.0,0.00024109,2]
[329428169,1718334648540,-500.0,0.00024109,2]
[329428171,1718334648562,-1101.15,0.00024109,2]
[329428173,1718334648582,-688.46,0.00024109,2]
[329428175,1718334648593,-500.0,0.00024109,2]
[329428179,1718334648625,-500.0,0.00024109,2]
[329428181,1718334648637,-500.0,0.00024109,2]
[329428182,1718334648647,-500.0,0.00024109,2]
[329428185,1718334648666,-500.0,0.00024109,2]
[329428187,1718334648693,-1562.9,0.00024109,2]
[329428188,1718334648712,-803.66,0.00024109,2]
[329428189,1718334648728,-921.2,0.00024109,2]
[329428190,1718334648739,-2716.23,0.00024109,2]
[329428191,1718334648751,-1321.78,0.00024109,2]
[329428192,1718334648762,-500.0,0.00024109,2]
[329428193,1718334648773,-588.63,0.00024109,2]
[329428194,1718334648836,-500.0,0.00024109,2]
[329428195,1718334648868,-1122.14,0.00024109,2]
[329428196,1718334648882,-1356.88,0.00024109,2]
[329428197,1718334648904,-500.0,0.00024109,2]
[329428198,1718334648928,-500.0,0.00024109,2]
[329428199,1718334648956,-1078.43,0.00024109,2]
[329428200,1718334648996,-500.0,0.00024109,2]
[329428201,1718334649017,-2256.12,0.00024109,2]
[329428202,1718334649032,-1601.08,0.00024109,2]
[329428203,1718334649044,-500.0,0.00024109,2]
[329428204,1718334649065,-1329.44,0.00024109,2]
[329428205,1718334649078,-4448.33,0.00024109,2]
[329428207,1718334649100,-2250.34,0.00024109,2]
[329428209,1718334649114,-1862.54,0.00024109,2]
[329428211,1718334649132,-500.0,0.00024109,2]
[329428212,1718334649157,-500.0,0.00024109,2]
[329428214,1718334649176,-941.91,0.00024109,2]
[329428216,1718334649187,-3964.66,0.00024109,2]
[329428218,1718334649205,-500.0,0.00024109,2]
[329428220,1718334649245,-880.01,0.00024109,2]
[329428222,1718334649262,-500.0,0.00024109,2]
[329428223,1718334649273,-822.2,0.00024109,2]
[329428224,1718334649290,-500.0,0.00024109,2]
[329428225,1718334649302,-663.82,0.00024109,2]
[329428226,1718334649314,-500.0,0.00024109,2]
[329428227,1718334649327,-500.0,0.00024109,2]
[329428228,1718334649340,-750.76,0.00024109,2]
[329428229,1718334649352,-500.0,0.00024109,2]
[329428230,1718334649363,-928.63,0.00024109,2]
[329428231,1718334649381,-828.94,0.00024109,2]
[329428232,1718334649393,-500.0,0.00024109,2]
[329428233,1718334649419,-500.0,0.00024109,2]
[329428234,1718334649430,-1352.61,0.00024109,2]
[329428235,1718334649457,-790.87,0.00024109,2]
[329428236,1718334649470,-883.79,0.00024109,2]
[329428237,1718334649496,-500.0,0.00024109,2]
[329428238,1718334649525,-500.0,0.00024109,2]
[329428239,1718334649543,-500.0,0.00024109,2]
[329428240,1718334649554,-585.54016172,0.00024109,2]
[329428241,1718334649568,-500.0,0.00024109,2]
[329428242,1718334649582,-942.9,0.00024109,2]
[329428243,1718334649597,-500.0,0.00024109,2]
[329428244,1718334649610,-529.96,0.00024109,2]
[329428245,1718334649625,-836.68,0.00024109,2]
[329428246,1718334649647,-500.0,0.00024109,2]
[329428247,1718334649659,-500.0,0.00024109,2]
[329428248,1718334649681,-500.0,0.00024109,2]
[329428249,1718334649695,-597.88,0.00024109,2]
[329428250,1718334649708,-895.4,0.00024109,2]
[329428251,1718334649807,-1407.97,0.00024109,2]
[329428252,1718334649818,-5187.95,0.00024109,2]
[329428253,1718334649830,-1813.03,0.00024109,2]
[329428254,1718334649856,-500.0,0.00024109,2]
[329428255,1718334649872,-500.0,0.00024109,2]
[329428256,1718334649890,-533.07,0.00024109,2]
[329428257,1718334649921,-500.0,0.00024109,2]
[329428258,1718334649934,-1563.64,0.00024109,2]
[329428259,1718334649944,-351.33314604,0.0002418,2]
[329428260,1718334649957,-3080.78,0.00024279,2]
[329428261,1718334649968,-500.0,0.00024279,2]
[329428262,1718334649980,-500.0,0.00024279,2]
[329428263,1718334649990,-1102.54,0.00024279,2]
[329428264,1718334650002,-500.0,0.00024279,2]
[329428265,1718334650025,-880.75,0.00024279,2]
[329428266,1718334650040,-500.0,0.00024279,2]
[329428267,1718334650061,-500.0,0.00024279,2]
[329428268,1718334650076,-500.0,0.00024279,2]
[329428269,1718334650100,-500.0,0.00024279,2]
[329428270,1718334650114,-2052.59,0.00024279,2]
[329428271,1718334650131,-884.26,0.00024279,2]
[329428272,1718334650144,-923.71,0.00024279,2]
[329428273,1718334650161,-1406.6,0.00024279,2]
[329428274,1718334650181,-1638.98,0.00024279,2]
[329428275,1718334650205,-4536.67,0.00024279,2]
[329428276,1718334650231,-500.0,0.00024279,2]
[329428277,1718334650263,-654.46,0.00024279,2]
[329428278,1718334650296,-500.0,0.00024279,2]
[329428279,1718334650316,-1200.59,0.00024279,2]
[329428280,1718334650342,-1003.5,0.00024279,2]
[329428281,1718334650357,-166279.73816802,0.0002428,2]
[329428282,1718334650440,-2250.34971316,0.0002428,2]
[329428283,1718334650630,-696.49411608,0.0002428,2]
[329428284,1718334650653,-3705.46738279,0.0002428,2]
[329428285,1718334650666,-8131.495456,0.0002428,2]
[329428286,1718334650687,-63936.45516395,0.0002428,2]
[329428287,1718334650700,-1000.0,0.0002428,2]
[329428288,1718334650711,-6809.37013361,0.0002428,2]
[329428289,1718334650723,-151.0,0.0002428,7]
[329428290,1718334650738,-204.693163,0.0002428,7]
[329428291,1718334650750,-204.693163,0.0002428,7]
[329428292,1718334650770,-154.813649,0.0002428,7]
[329428293,1718334650789,-153.373618,0.0002428,7]
[329428294,1718334650817,-323.12138,0.0002428,7]